[Event "Czech Open Rapid G1 2024"]
[Site "Pardubice"]
[Date "2024.07.18"]
[Round "7.25"]
[White "Dostal, Radim"]
[Black "Ret, Adam Josef"]
[Result "1/2-1/2"]
[Annotator "RC"]
[ECO "B30"]
[WhiteElo "1961"]
[BlackElo "2085"]
[PlyCount "44"]
[EventDate "2024.07.16"]
[EventType "swiss"]
[EventCountry "CZE"]
[SourceTitle "playchess.com"]
[Source "ChessBase"]
[SourceQuality "1"]
[TimeControl "1200+10"]

1. e4 {[%emt 0:00:06]} c5 {[%emt 0:00:00]} 2. Nf3 {[%emt 0:00:02]} Nc6 {[%emt 0:00:01]} 3. Nc3 {[%emt 0:00:01]} e5 {[%emt 0:00:03]} 4. Bc4 {[%emt 0:00:01]} Be7 {[%emt 0:00:36]} 5. d3 {[%emt 0:00:57]} d6 {[%emt 0:00:35]} 6. O-O {[%emt 0:00:04]} Nf6 {[%emt 0:00:12]} 7. Ng5 {[%emt 0:00:05]} O-O {[%emt 0:00:15]} 8. f4 {[%emt 0:00:01]} h6 {[%emt 0:00:05]} 9. Nf3 {[%emt 0:00:04]} a6 {[%emt 0:00:16]} 10. a4 {[%emt 0:00:14]} exf4 {[%emt 0:00:45]} 11. Bxf4 {[%emt 0:00:03]} Ng4 {[%emt 0:01:28]} 12. Bb3 {[%emt 0:02:39]} Bf6 {[%emt 0:00:56]} 13. Nd5 {[%emt 0:00:52]} Bxb2 {[%emt 0:00:53]} 14. Rb1 {[%emt 0:02:35]} Bd4+ {[%emt 0:01:44]} 15. Nxd4 {[%emt 0:00:30]} Nxd4 {[%emt 0:00:08]} 16. Nb6 {[%emt 0:00:48]} Ra7 {[%emt 0:08:55]} 17. Nxc8 {[%emt 0:03:19]} Qxc8 {[%emt 0:00:04]} 18. Bxd6 {[%emt 0:00:06]} Nxb3 {[%emt 0:00:45]} 19. Rxb3 {[%emt 0:02:55]} Ne3 {[%emt 0:01:06]} 20. Qe2 {[%emt 0:00:11]} Nxf1 {[%emt 0:00:43]} 21. Bxf8 {[%emt 0:00:01]} Qxf8 {[%emt 0:00:33]} 22. Qxf1 {[%emt 0:00:02]} Qd8 {[%emt 0:00:34]} 1/2-1/2

[Event "Czech Open Rapid G1 2024"]
[Site "Pardubice"]
[Date "2024.07.18"]
[Round "7.26"]
[White "Stocek, Martin"]
[Black "Novotny, Josef"]
[Result "1-0"]
[Annotator "RC"]
[ECO "A40"]
[WhiteElo "2110"]
[BlackElo "2033"]
[PlyCount "61"]
[EventDate "2024.07.16"]
[EventType "swiss"]
[EventCountry "CZE"]
[SourceTitle "playchess.com"]
[Source "ChessBase"]
[SourceQuality "1"]
[TimeControl "1200+10"]

1. d4 {[%emt 0:00:10]} e6 {[%emt 0:00:10]} 2. c4 {[%emt 0:00:00]} d6 {[%emt 0:00:00]} 3. Nc3 {[%emt 0:00:05]} Nc6 {[%emt 0:00:00]} 4. Nf3 {[%emt 0:00:12]} h6 {[%emt 0:00:03]} 5. e4 {[%emt 0:00:13]} Nf6 {[%emt 0:00:02]} 6. h3 {[%emt 0:00:08]} Be7 {[%emt 0:00:03]} 7. Be3 {[%emt 0:00:02]} a6 {[%emt 0:00:02]} 8. Bd3 {[%emt 0:00:06]} e5 {[%emt 0:00:10]} 9. d5 {[%emt 0:00:28]} Nb8 {[%emt 0:00:03]} 10. b4 {[%emt 0:00:22]} Nbd7 {[%emt 0:00:03]} 11. O-O {[%emt 0:00:27]} g5 {[%emt 0:00:04]} 12. Nd2 {[%emt 0:00:35]} Nf8 {[%emt 0:00:04]} 13. c5 {[%emt 0:00:37]} Ng6 {[%emt 0:00:04]} 14. Nc4 {[%emt 0:01:25]} g4 {[%emt 0:00:12]} 15. cxd6 {[%emt 0:00:45]} cxd6 {[%emt 0:00:02]} 16. Bb6 {[%emt 0:02:44]} Qd7 {[%emt 0:00:05]} 17. Bc2 {[%emt 0:01:02]} gxh3 {[%emt 0:01:05]} 18. Ba4 {[%emt 0:00:16]} hxg2 {[%emt 0:00:03]} 19. Re1 {[%emt 0:01:16]} Kf8 {[%emt 0:00:07]} 20. Bxd7 {[%emt 0:00:03]} Bxd7 {[%emt 0:00:01]} 21. f3 {[%emt 0:02:56]} Rc8 {[%emt 0:00:30]} 22. Qb3 {[%emt 0:00:31]} Nf4 {[%emt 0:00:33]} 23. Be3 {[%emt 0:01:07]} Nh3+ {[%emt 0:00:04]} 24. Kxg2 {[%emt 0:00:04]} Nh5 {[%emt 0:01:00]} 25. Nb6 {[%emt 0:01:53]} N3f4+ {[%emt 0:00:03]} 26. Bxf4 {[%emt 0:01:02]} Nxf4+ {[%emt 0:00:03]} 27. Kh2 {[%emt 0:00:46]} Rd8 {[%emt 0:00:04]} 28. Nxd7+ {[%emt 0:00:02]} Rxd7 {[%emt 0:00:01]} 29. Ne2 {[%emt 0:00:14]} Bg5 {[%emt 0:00:02]} 30. Nxf4 {[%emt 0:00:51]} Bxf4+ {[%emt 0:00:02]} 31. Kh1 {[%emt 0:00:04]} 1-0

[Event "Czech Open Rapid G1 2024"]
[Site "Pardubice"]
[Date "2024.07.18"]
[Round "7.27"]
[White "Tyshniuk, Roman"]
[Black "Novotny, Dominik"]
[Result "1-0"]
[Annotator "RC"]
[ECO "D31"]
[WhiteElo "1903"]
[BlackElo "1921"]
[PlyCount "75"]
[EventDate "2024.07.16"]
[EventType "swiss"]
[EventCountry "CZE"]
[SourceTitle "playchess.com"]
[Source "ChessBase"]
[SourceQuality "1"]
[TimeControl "1200+10"]

1. d4 {[%emt 0:00:02]} d5 {[%emt 0:00:02]} 2. c4 {[%emt 0:00:02]} e6 {[%emt 0:00:02]} 3. Nc3 {[%emt 0:00:01]} a6 {[%emt 0:00:01]} 4. cxd5 {[%emt 0:00:02]} exd5 {[%emt 0:00:02]} 5. Nf3 {[%emt 0:00:05]} h6 {[%emt 0:00:04]} 6. Bf4 {[%emt 0:00:05]} Nf6 {[%emt 0:00:07]} 7. e3 {[%emt 0:00:02]} Bd6 {[%emt 0:00:05]} 8. Bxd6 {[%emt 0:00:13]} Qxd6 {[%emt 0:00:01]} 9. Bd3 {[%emt 0:00:03]} Bg4 {[%emt 0:00:13]} 10. h3 {[%emt 0:00:13]} Bxf3 {[%emt 0:00:03]} 11. Qxf3 {[%emt 0:00:03]} Nbd7 {[%emt 0:00:39]} 12. O-O {[%emt 0:00:05]} O-O {[%emt 0:00:03]} 13. a3 {[%emt 0:00:24]} c6 {[%emt 0:00:56]} 14. b4 {[%emt 0:00:18]} Nb6 {[%emt 0:02:22]} 15. Rab1 {[%emt 0:00:06]} Qe7 {[%emt 0:02:04]} 16. a4 {[%emt 0:00:19]} Nc8 {[%emt 0:01:29]} 17. b5 {[%emt 0:01:23]} axb5 {[%emt 0:00:36]} 18. axb5 {[%emt 0:00:00]} Nd6 {[%emt 0:01:53]} 19. bxc6 {[%emt 0:00:05]} bxc6 {[%emt 0:00:02]} 20. Rfc1 {[%emt 0:02:04]} Nfe4 {[%emt 0:01:25]} 21. Bxe4 {[%emt 0:00:28]} dxe4 {[%emt 0:00:05]} 22. Qh5 {[%emt 0:00:28]} f5 {[%emt 0:02:40]} 23. Ne2 {[%emt 0:00:16]} Ra6 {[%emt 0:00:19]} 24. Nf4 {[%emt 0:00:07]} Rf6 {[%emt 0:01:52]} 25. Ng6 {[%emt 0:00:17]} Qe8 {[%emt 0:02:12]} 26. Qe2 {[%emt 0:00:16]} Nb5 {[%emt 0:01:31]} 27. Rxb5 {[%emt 0:02:44]} Rxg6 {[%emt 0:01:51]} 28. Rxf5 {[%emt 0:00:03]} Qe6 {[%emt 0:00:11]} 29. Qxa6 {[%emt 0:01:47]} Qxf5 {[%emt 0:00:02]} 30. Rxc6 {[%emt 0:00:13]} Rg5 {[%emt 0:01:48]} 31. Qc8+ {[%emt 0:00:25]} Qxc8 {[%emt 0:00:02]} 32. Rxc8+ {[%emt 0:00:01]} Kf7 {[%emt 0:00:01]} 33. Rc5 {[%emt 0:00:40]} Rxc5 {[%emt 0:00:23]} 34. dxc5 {[%emt 0:00:01]} Ke6 {[%emt 0:00:01]} 35. Kh2 {[%emt 0:00:01]} Kd5 {[%emt 0:00:28]} 36. Kg3 {[%emt 0:00:02]} g5 {[%emt 0:00:18]} 37. Kg4 {[%emt 0:00:07]} Kxc5 {[%emt 0:00:01]} 38. Kf5 {[%emt 0:00:02]} 1-0

[Event "Czech Open Rapid G1 2024"]
[Site "Pardubice"]
[Date "2024.07.18"]
[Round "7.28"]
[White "Flasar, Jaroslav"]
[Black "Kroulik, Vaclav"]
[Result "0-1"]
[Annotator "RC"]
[ECO "B92"]
[WhiteElo "2012"]
[BlackElo "1976"]
[PlyCount "74"]
[EventDate "2024.07.16"]
[EventType "swiss"]
[EventCountry "CZE"]
[SourceTitle "playchess.com"]
[Source "ChessBase"]
[SourceQuality "1"]
[TimeControl "1200+10"]

1. e4 {[%emt 0:00:03]} c5 {[%emt 0:00:01]} 2. Nf3 {[%emt 0:00:01]} d6 {[%emt 0:00:01]} 3. d4 {[%emt 0:00:01]} cxd4 {[%emt 0:00:02]} 4. Nxd4 {[%emt 0:00:02]} Nf6 {[%emt 0:00:02]} 5. Nc3 {[%emt 0:00:01]} Nc6 {[%emt 0:00:01]} 6. Be2 {[%emt 0:00:07]} e5 {[%emt 0:00:07]} 7. Nb3 {[%emt 0:00:02]} Be7 {[%emt 0:00:04]} 8. O-O {[%emt 0:00:06]} O-O {[%emt 0:00:04]} 9. Be3 {[%emt 0:00:07]} a6 {[%emt 0:00:08]} 10. f3 {[%emt 0:00:27]} Be6 {[%emt 0:00:34]} 11. Nd5 {[%emt 0:00:02]} Bxd5 {[%emt 0:00:21]} 12. exd5 {[%emt 0:00:02]} Nb8 {[%emt 0:00:10]} 13. c4 {[%emt 0:00:01]} Nbd7 {[%emt 0:00:03]} 14. Rc1 {[%emt 0:00:08]} b6 {[%emt 0:00:14]} 15. Nd2 {[%emt 0:00:25]} a5 {[%emt 0:01:10]} 16. a3 {[%emt 0:00:07]} a4 {[%emt 0:00:10]} 17. Nb1 {[%emt 0:00:16]} Nc5 {[%emt 0:00:25]} 18. Nc3 {[%emt 0:00:02]} Nfd7 {[%emt 0:00:57]} 19. f4 {[%emt 0:00:32]} e4 {[%emt 0:00:35]} 20. f5 {[%emt 0:00:18]} Bg5 {[%emt 0:00:31]} 21. Bxg5 {[%emt 0:00:54]} Qxg5 {[%emt 0:00:02]} 22. Qc2 {[%emt 0:00:55]} Qe3+ {[%emt 0:01:07]} 23. Kh1 {[%emt 0:00:01]} Nd3 {[%emt 0:01:03]} 24. Bxd3 {[%emt 0:02:07]} exd3 {[%emt 0:00:02]} 25. Qd1 {[%emt 0:00:01]} Nc5 {[%emt 0:01:11]} 26. f6 {[%emt 0:00:12]} g6 {[%emt 0:00:37]} 27. Rf3 {[%emt 0:00:25]} Qg5 {[%emt 0:00:41]} 28. Nb5 {[%emt 0:00:51]} Rfe8 {[%emt 0:01:14]} 29. h4 {[%emt 0:01:13]} Qxh4+ {[%emt 0:02:57]} 30. Rh3 {[%emt 0:00:01]} Qg5 {[%emt 0:00:14]} 31. Nxd6 {[%emt 0:01:34]} d2 {[%emt 0:00:12]} 32. Rb1 {[%emt 0:00:47]} Re1+ {[%emt 0:00:04]} 33. Qxe1 {[%emt 0:00:04]} dxe1=Q+ {[%emt 0:00:03]} 34. Rxe1 {[%emt 0:00:01]} Qxf6 {[%emt 0:00:18]} 35. Nb5 {[%emt 0:00:07]} Nd3 {[%emt 0:00:16]} 36. Rhe3 {[%emt 0:00:21]} Nxe1 37. Rxe1 {[%emt 0:00:09]} Qh4+ {[%emt 0:00:11]} 0-1

[Event "Czech Open Rapid G1 2024"]
[Site "Pardubice"]
[Date "2024.07.18"]
[Round "7.29"]
[White "Kastner, Oldrich"]
[Black "Skoloud, Barnabas"]
[Result "1-0"]
[Annotator "RC"]
[ECO "D92"]
[WhiteElo "2004"]
[BlackElo "1914"]
[PlyCount "73"]
[EventDate "2024.07.16"]
[EventType "swiss"]
[EventCountry "CZE"]
[SourceTitle "playchess.com"]
[Source "ChessBase"]
[SourceQuality "1"]
[TimeControl "1200+10"]

1. d4 {[%emt 0:00:03]} d5 {[%emt 0:00:49]} 2. Bf4 {[%emt 0:00:04]} Nf6 {[%emt 0:00:04]} 3. e3 {[%emt 0:00:04]} g6 {[%emt 0:00:30]} 4. Nf3 {[%emt 0:00:22]} Bg7 {[%emt 0:00:17]} 5. c4 {[%emt 0:00:21]} c6 {[%emt 0:00:11]} 6. Nc3 {[%emt 0:00:06]} Nbd7 {[%emt 0:00:19]} 7. cxd5 {[%emt 0:01:57]} Nxd5 {[%emt 0:00:15]} 8. Bg3 {[%emt 0:00:09]} O-O {[%emt 0:02:13]} 9. Bc4 {[%emt 0:00:27]} N7b6 {[%emt 0:00:20]} 10. Bb3 {[%emt 0:00:02]} Bg4 {[%emt 0:00:33]} 11. h3 {[%emt 0:00:28]} Bf5 {[%emt 0:01:02]} 12. O-O {[%emt 0:00:38]} Rc8 {[%emt 0:01:05]} 13. Re1 {[%emt 0:01:07]} Nxc3 {[%emt 0:00:08]} 14. bxc3 {[%emt 0:00:06]} c5 {[%emt 0:01:23]} 15. Ne5 {[%emt 0:02:59]} c4 {[%emt 0:01:18]} 16. Bc2 {[%emt 0:00:05]} Bxc2 {[%emt 0:03:30]} 17. Qxc2 {[%emt 0:00:02]} Nd7 {[%emt 0:01:55]} 18. Nf3 {[%emt 0:02:01]} Re8 {[%emt 0:01:44]} 19. Qa4 {[%emt 0:02:00]} a6 {[%emt 0:03:50]} 20. Reb1 {[%emt 0:01:08]} Nb6 {[%emt 0:00:01]} 21. Qa5 {[%emt 0:02:30]} Nd5 {[%emt 0:00:21]} 22. Qa3 {[%emt 0:00:03]} b5 {[%emt 0:01:07]} 23. e4 {[%emt 0:00:38]} Nf6 {[%emt 0:00:01]} 24. Re1 {[%emt 0:01:17]} Ra8 {[%emt 0:00:12]} 25. Rab1 {[%emt 0:00:37]} Nd7 {[%emt 0:00:09]} 26. Qb4 {[%emt 0:01:11]} Bf8 {[%emt 0:00:07]} 27. Qb2 {[%emt 0:00:08]} Nb6 {[%emt 0:00:04]} 28. Qd2 {[%emt 0:00:45]} e6 {[%emt 0:01:01]} 29. Bh4 {[%emt 0:00:31]} Qd6 {[%emt 0:00:09]} 30. Bf6 {[%emt 0:00:26]} Bg7 {[%emt 0:00:15]} 31. e5 {[%emt 0:01:04]} Qa3 {[%emt 0:00:01]} 32. Qg5 {[%emt 0:00:55]} Nd5 {[%emt 0:00:08]} 33. Re4 {[%emt 0:00:16]} h6 {[%emt 0:00:16]} 34. Qh4 {[%emt 0:00:14]} Nxc3 {[%emt 0:00:19]} 35. Rg4 {[%emt 0:00:22]} Nxb1 {[%emt 0:00:30]} 36. Bxg7 {[%emt 0:00:01]} Nc3 {[%emt 0:00:19]} 37. Bf6 1-0

[Event "Czech Open Rapid G1 2024"]
[Site "Pardubice"]
[Date "2024.07.18"]
[Round "7.30"]
[White "Dehmel, Jens"]
[Black "Pejrimovska, Viola Ruby"]
[Result "1-0"]
[Annotator "RC"]
[ECO "E65"]
[WhiteElo "1980"]
[BlackElo "1780"]
[PlyCount "95"]
[EventDate "2024.07.16"]
[EventType "swiss"]
[EventCountry "CZE"]
[SourceTitle "playchess.com"]
[Source "ChessBase"]
[SourceQuality "1"]
[TimeControl "1200+10"]

1. d4 {[%emt 0:00:02]} Nf6 {[%emt 0:00:01]} 2. c4 {[%emt 0:00:01]} c5 {[%emt 0:00:03]} 3. Nf3 {[%emt 0:00:02]} g6 {[%emt 0:00:09]} 4. g3 {[%emt 0:00:01]} Bg7 {[%emt 0:00:04]} 5. Bg2 {[%emt 0:00:01]} O-O {[%emt 0:00:36]} 6. O-O {[%emt 0:00:03]} cxd4 {[%emt 0:01:00]} 7. Nxd4 {[%emt 0:00:01]} d6 {[%emt 0:00:34]} 8. Nc3 {[%emt 0:00:03]} a5 {[%emt 0:01:53]} 9. h3 {[%emt 0:00:29]} Nbd7 {[%emt 0:00:23]} 10. Be3 {[%emt 0:00:05]} Ne5 {[%emt 0:02:25]} 11. b3 {[%emt 0:00:34]} h6 {[%emt 0:00:03]} 12. Qd2 {[%emt 0:00:04]} Kh7 {[%emt 0:00:02]} 13. Rac1 {[%emt 0:00:08]} Nh5 {[%emt 0:00:29]} 14. Kh2 {[%emt 0:00:34]} f5 {[%emt 0:01:14]} 15. f4 {[%emt 0:00:04]} Nf7 {[%emt 0:00:01]} 16. Bg1 {[%emt 0:00:20]} e5 {[%emt 0:01:42]} 17. Ndb5 {[%emt 0:00:02]} exf4 {[%emt 0:01:55]} 18. gxf4 {[%emt 0:00:13]} Ne5 {[%emt 0:02:00]} 19. Bf2 {[%emt 0:04:54]} Nxf4 {[%emt 0:00:43]} 20. Qxf4 {[%emt 0:01:12]} Nd3 {[%emt 0:01:14]} 21. Qf3 {[%emt 0:01:10]} Nxc1 {[%emt 0:00:31]} 22. Rxc1 {[%emt 0:00:02]} Be5+ {[%emt 0:00:49]} 23. Kh1 {[%emt 0:00:13]} g5 {[%emt 0:00:09]} 24. Nd5 {[%emt 0:00:56]} g4 {[%emt 0:00:15]} 25. Qd3 {[%emt 0:00:54]} Rg8 {[%emt 0:02:41]} 26. Nd4 {[%emt 0:01:34]} Qg5 {[%emt 0:00:47]} 27. e3 {[%emt 0:02:56]} gxh3 {[%emt 0:00:50]} 28. Bf3 {[%emt 0:00:21]} h2 {[%emt 0:01:13]} 29. Nb6 {[%emt 0:01:36]} Kh8 {[%emt 0:00:42]} 30. Nxc8 {[%emt 0:00:14]} Raxc8 {[%emt 0:00:10]} 31. Qxf5 {[%emt 0:00:09]} Rcf8 {[%emt 0:00:30]} 32. Qxg5 {[%emt 0:00:05]} Rxg5 {[%emt 0:00:02]} 33. e4 {[%emt 0:01:48]} Rfg8 {[%emt 0:00:10]} 34. Nf5 {[%emt 0:00:19]} Bf4 {[%emt 0:00:12]} 35. Rd1 {[%emt 0:00:03]} Kh7 {[%emt 0:00:13]} 36. Nxd6 {[%emt 0:00:25]} Bxd6 {[%emt 0:00:04]} 37. Rxd6 {[%emt 0:00:00]} Rg1+ {[%emt 0:00:19]} 38. Kxh2 {[%emt 0:00:12]} Rf1 {[%emt 0:00:09]} 39. Rd7+ {[%emt 0:00:07]} Kg6 {[%emt 0:00:01]} 40. Rd2 {[%emt 0:00:57]} Rf8 {[%emt 0:00:17]} 41. Kg2 {[%emt 0:00:01]} Ra1 {[%emt 0:00:15]} 42. e5 {[%emt 0:00:11]} Rc1 {[%emt 0:00:04]} 43. e6 {[%emt 0:00:12]} Kf6 {[%emt 0:00:11]} 44. Bd5 {[%emt 0:00:02]} Rg8+ {[%emt 0:00:08]} 45. Kh2 {[%emt 0:00:17]} Ke7 {[%emt 0:00:13]} 46. Bh4+ {[%emt 0:00:11]} Ke8 {[%emt 0:00:05]} 47. Bxb7 {[%emt 0:00:24]} Kf8 {[%emt 0:00:16]} 48. e7+ {[%emt 0:00:17]} 1-0

[Event "Czech Open Rapid G1 2024"]
[Site "Pardubice"]
[Date "2024.07.18"]
[Round "7.31"]
[White "Sichrovsky, Tomas"]
[Black "Dorokhina, Elizaveta"]
[Result "0-1"]
[Annotator "RC"]
[ECO "D36"]
[WhiteElo "1933"]
[BlackElo "1962"]
[PlyCount "166"]
[EventDate "2024.07.16"]
[EventType "swiss"]
[EventCountry "CZE"]
[SourceTitle "playchess.com"]
[Source "ChessBase"]
[SourceQuality "1"]
[TimeControl "1200+10"]

1. d4 {[%emt 0:00:02]} e6 {[%emt 0:00:02]} 2. c4 {[%emt 0:00:02]} Nf6 {[%emt 0:00:02]} 3. Nc3 {[%emt 0:00:01]} d5 {[%emt 0:00:01]} 4. cxd5 {[%emt 0:00:01]} exd5 {[%emt 0:00:02]} 5. Bg5 {[%emt 0:00:02]} Be7 {[%emt 0:00:02]} 6. e3 {[%emt 0:00:01]} c6 {[%emt 0:00:01]} 7. Bd3 {[%emt 0:00:01]} h6 {[%emt 0:00:03]} 8. Bh4 {[%emt 0:00:02]} O-O {[%emt 0:00:02]} 9. Qc2 {[%emt 0:00:01]} Re8 {[%emt 0:00:02]} 10. Nge2 {[%emt 0:00:02]} a5 {[%emt 0:00:01]} 11. O-O {[%emt 0:00:11]} Na6 {[%emt 0:00:02]} 12. a3 {[%emt 0:00:03]} Nc7 {[%emt 0:00:03]} 13. f3 {[%emt 0:00:07]} b5 {[%emt 0:00:01]} 14. Bf2 {[%emt 0:00:18]} Ba6 {[%emt 0:00:04]} 15. Ng3 {[%emt 0:00:40]} Ne6 {[%emt 0:00:57]} 16. Rfd1 {[%emt 0:01:41]} Qb6 {[%emt 0:00:49]} 17. Nf5 {[%emt 0:01:51]} Bf8 {[%emt 0:00:04]} 18. Rac1 {[%emt 0:01:02]} Qb7 {[%emt 0:00:49]} 19. a4 {[%emt 0:01:07]} b4 {[%emt 0:00:13]} 20. Ne2 {[%emt 0:00:02]} Bxd3 {[%emt 0:02:10]} 21. Qxd3 {[%emt 0:00:09]} c5 {[%emt 0:00:16]} 22. b3 {[%emt 0:00:35]} Rac8 {[%emt 0:00:21]} 23. dxc5 {[%emt 0:00:43]} Nxc5 {[%emt 0:00:11]} 24. Qb1 {[%emt 0:00:43]} Qa6 {[%emt 0:00:36]} 25. Nfd4 {[%emt 0:01:05]} g6 {[%emt 0:00:44]} 26. Nb5 {[%emt 0:00:16]} h5 {[%emt 0:01:31]} 27. Ned4 {[%emt 0:00:06]} Bh6 {[%emt 0:00:17]} 28. Re1 {[%emt 0:00:26]} Nfd7 {[%emt 0:00:17]} 29. Rcd1 {[%emt 0:01:16]} Ne5 {[%emt 0:00:42]} 30. Bg3 {[%emt 0:01:03]} Qf6 {[%emt 0:00:08]} 31. Kh1 {[%emt 0:01:10]} h4 {[%emt 0:00:17]} 32. Bxe5 {[%emt 0:01:32]} Rxe5 {[%emt 0:00:13]} 33. f4 {[%emt 0:00:21]} Ree8 {[%emt 0:00:10]} 34. Nf3 {[%emt 0:00:17]} Red8 {[%emt 0:01:02]} 35. Nbd4 {[%emt 0:00:58]} Ne4 {[%emt 0:00:07]} 36. Qb2 {[%emt 0:00:29]} Bg7 {[%emt 0:00:43]} 37. Rc1 {[%emt 0:01:01]} Qe7 {[%emt 0:00:12]} 38. Qe2 {[%emt 0:00:46]} Nc3 {[%emt 0:00:46]} 39. Qa6 {[%emt 0:01:17]} Ra8 {[%emt 0:00:31]} 40. Qf1 {[%emt 0:00:29]} Rdc8 {[%emt 0:00:14]} 41. Nb5 {[%emt 0:01:06]} Ne4 {[%emt 0:01:39]} 42. Nfd4 {[%emt 0:00:23]} Bf6 {[%emt 0:00:10]} 43. Rxc8+ {[%emt 0:00:21]} Rxc8 {[%emt 0:00:04]} 44. Rc1 {[%emt 0:00:05]} Qd7 {[%emt 0:00:18]} 45. Rxc8+ {[%emt 0:01:17]} Qxc8 {[%emt 0:00:04]} 46. f5 {[%emt 0:00:24]} g5 {[%emt 0:01:10]} 47. Qe1 {[%emt 0:00:42]} Qc5 {[%emt 0:00:33]} 48. Kg1 {[%emt 0:00:30]} Kg7 {[%emt 0:00:13]} 49. g3 {[%emt 0:00:27]} hxg3 {[%emt 0:00:28]} 50. hxg3 {[%emt 0:00:01]} Be5 {[%emt 0:00:03]} 51. g4 {[%emt 0:00:27]} Bg3 {[%emt 0:00:20]} 52. Qe2 {[%emt 0:00:23]} Qc1+ {[%emt 0:00:22]} 53. Kg2 {[%emt 0:00:08]} Be5 {[%emt 0:00:07]} 54. f6+ {[%emt 0:00:15]} Bxf6 {[%emt 0:00:22]} 55. Nf5+ {[%emt 0:00:10]} Kf8 {[%emt 0:00:05]} 56. Nbd4 {[%emt 0:00:03]} Qd2 {[%emt 0:01:44]} 57. Kf3 {[%emt 0:00:23]} Qxe2+ {[%emt 0:00:19]} 58. Kxe2 {[%emt 0:00:05]} Nc5 {[%emt 0:01:36]} 59. Kd2 {[%emt 0:00:04]} Ke8 {[%emt 0:00:14]} 60. Nd6+ {[%emt 0:00:11]} Ke7 {[%emt 0:00:25]} 61. N6f5+ {[%emt 0:00:01]} Kd7 {[%emt 0:00:08]} 62. Kc2 {[%emt 0:00:18]} Be5 {[%emt 0:00:10]} 63. Kd2 {[%emt 0:00:08]} Ne4+ {[%emt 0:01:13]} 64. Ke2 {[%emt 0:00:03]} Nc5 {[%emt 0:00:21]} 65. Kd2 {[%emt 0:00:04]} Ne6 {[%emt 0:00:51]} 66. Nb5 {[%emt 0:00:20]} f6 {[%emt 0:00:46]} 67. Ke2 {[%emt 0:00:16]} Nc5 {[%emt 0:00:50]} 68. Nbd4 {[%emt 0:00:02]} Bxd4 {[%emt 0:00:14]} 69. Nxd4 {[%emt 0:00:04]} Kd6 {[%emt 0:00:05]} 70. Kf3 {[%emt 0:00:08]} Ne4 {[%emt 0:00:13]} 71. Ke2 {[%emt 0:00:11]} Nc5 {[%emt 0:00:23]} 72. Kf3 {[%emt 0:00:05]} Nd7 {[%emt 0:00:06]} 73. Nf5+ {[%emt 0:00:35]} Kc6 {[%emt 0:00:29]} 74. Nd4+ {[%emt 0:00:05]} Kc5 {[%emt 0:00:07]} 75. Ne6+ {[%emt 0:00:03]} Kd6 {[%emt 0:00:04]} 76. Nd4 {[%emt 0:00:04]} Ne5+ {[%emt 0:00:03]} 77. Kg3 {[%emt 0:00:01]} Nc6 {[%emt 0:00:05]} 78. Nf5+ {[%emt 0:00:20]} Ke5 {[%emt 0:00:03]} 79. Kf3 {[%emt 0:00:12]} d4 {[%emt 0:00:13]} 80. e4 {[%emt 0:00:02]} d3 {[%emt 0:00:32]} 81. Ke3 {[%emt 0:00:01]} d2 {[%emt 0:00:04]} 82. Kxd2 {[%emt 0:00:12]} Kxe4 {[%emt 0:00:03]} 83. Kc2 {[%emt 0:00:19]} Nd4+ {[%emt 0:00:03]} 0-1

[Event "Czech Open Rapid G1 2024"]
[Site "Pardubice"]
[Date "2024.07.18"]
[Round "7.32"]
[White "Rous, Dominik"]
[Black "Moeller, Tom"]
[Result "0-1"]
[Annotator "NA RC"]
[ECO "D04"]
[WhiteElo "1719"]
[BlackElo "1842"]
[PlyCount "82"]
[EventDate "2024.07.16"]
[EventType "swiss"]
[EventCountry "CZE"]
[SourceTitle "playchess.com"]
[Source "ChessBase"]
[SourceQuality "1"]
[TimeControl "1200+10"]

1. Nf3 {[%emt 0:00:53]} d5 {[%emt 0:00:08]} 2. b3 {[%emt 0:00:08]} Nf6 {[%emt 0:00:51]} 3. Bb2 {[%emt 0:00:02]} g6 {[%emt 0:00:55]} 4. e3 {[%emt 0:00:21]} Bg7 {[%emt 0:00:08]} 5. d4 {[%emt 0:00:17]} Bg4 {[%emt 0:00:46]} 6. h3 {[%emt 0:00:06]} Bxf3 {[%emt 0:00:06]} 7. Qxf3 {[%emt 0:00:07]} c6 {[%emt 0:00:03]} 8. Nd2 {[%emt 0:00:12]} Nbd7 {[%emt 0:00:19]} 9. Bd3 {[%emt 0:00:20]} Qc7 {[%emt 0:01:19]} 10. O-O {[%emt 0:00:16]} O-O {[%emt 0:00:08]} 11. c4 {[%emt 0:00:02]} e6 {[%emt 0:00:23]} 12. Rac1 {[%emt 0:02:53]} Rfe8 {[%emt 0:00:47]} 13. Rfd1 {[%emt 0:00:48]} Rac8 {[%emt 0:00:29]} 14. Qe2 {[%emt 0:00:39]} Qb8 {[%emt 0:00:29]} 15. Nf3 {[%emt 0:00:32]} h6 {[%emt 0:02:11]} 16. Qc2 {[%emt 0:00:23]} Nh7 {[%emt 0:01:34]} 17. Nh4 {[%emt 0:00:36]} Ndf8 {[%emt 0:00:37]} 18. Rb1 {[%emt 0:01:30]} f5 {[%emt 0:00:13]} 19. Qe2 {[%emt 0:02:04]} g5 {[%emt 0:00:42]} 20. Nf3 {[%emt 0:00:19]} Nf6 {[%emt 0:00:05]} 21. Ba3 {[%emt 0:00:33]} Ne4 {[%emt 0:00:09]} 22. Bxe4 {[%emt 0:00:06]} fxe4 {[%emt 0:00:06]} 23. Nh2 {[%emt 0:00:56]} Ng6 {[%emt 0:01:07]} 24. Qh5 {[%emt 0:00:26]} Kh7 {[%emt 0:00:43]} 25. cxd5 {[%emt 0:01:35]} exd5 {[%emt 0:00:11]} 26. b4 {[%emt 0:01:22]} a6 {[%emt 0:00:18]} 27. Bc1 {[%emt 0:00:33]} Rf8 {[%emt 0:00:24]} 28. a4 {[%emt 0:00:10]} Rxf2 {[%emt 0:01:20]} 29. Nf3 {[%emt 0:00:30]} Qg3 {[%emt 0:00:33]} 30. Qg4 {[%emt 0:01:29]} Rxg2+ {[%emt 0:00:29]} 31. Kh1 {[%emt 0:00:02]} exf3 {[%emt 0:00:07]} 32. Qxg3 {[%emt 0:00:05]} Rxg3 {[%emt 0:00:02]} 33. Kh2 {[%emt 0:00:15]} Rg2+ {[%emt 0:00:06]} 34. Kh1 {[%emt 0:00:00]} Nh4 {[%emt 0:00:02]} 35. Rf1 {[%emt 0:00:08]} Rf8 {[%emt 0:00:15]} 36. b5 {[%emt 0:00:25]} Rf7 {[%emt 0:00:32]} 37. bxc6 {[%emt 0:00:24]} bxc6 {[%emt 0:00:01]} 38. Ba3 {[%emt 0:00:01]} f2 {[%emt 0:00:28]} 39. Bd6 {[%emt 0:00:12]} Rf3 {[%emt 0:00:08]} 40. Bh2 {[%emt 0:00:21]} Rxh3 {[%emt 0:00:05]} 41. Rxf2 {[%emt 0:00:01]} Rhxh2# {[%emt 0:00:02]} 0-1